fUST/lending_fUST_20250817
["ID","MTS","AMOUNT","RATE_DAILY","PERIOD"]
[379726463,1755388243866,-659.97,0.000203,2]
[379726465,1755388243876,-594.81,0.000203,2]
[379726468,1755388243887,-480.0,0.00020301,2]
[379726469,1755388243896,-480.0,0.00020301,2]
[379726472,1755388243906,-480.0,0.00020301,2]
[379726473,1755388243916,-815.27,0.00020301,2]
[379726476,1755388243926,-1173.07,0.00020301,2]
[379726478,1755388243936,-706.92,0.00020301,2]
[379726479,1755388243945,-480.0,0.00020301,2]
[379726482,1755388243955,-151.0,0.00020301,2]
[379726483,1755388243964,-151.0,0.00020301,2]
[379726486,1755388243973,-151.0,0.00020301,2]
[379726488,1755388243982,-530.71,0.00020301,2]
[379726490,1755388243992,-151.0,0.00020301,2]
[379726491,1755388244002,-151.0,0.00020301,2]
[379726493,1755388244011,-151.0,0.00020301,2]
[379726496,1755388244021,-480.0,0.00020301,2]
[379726497,1755388244030,-460.0,0.00020301,2]
[379726499,1755388244041,-486.65,0.00020301,2]
[379726501,1755388244050,-151.0,0.00020301,2]
[379726503,1755388244060,-480.0,0.00020301,2]
[379726506,1755388244072,-520.12,0.00020301,2]
[379726508,1755388244100,-151.0,0.00020301,2]
[379726510,1755388244115,-151.0,0.00020301,2]
[379726512,1755388244132,-151.0,0.00020301,2]
[379726514,1755388244142,-480.0,0.00020301,2]
[379726516,1755388244152,-480.0,0.00020301,2]
[379726518,1755388244162,-729.19,0.00020301,2]
[379726520,1755388244172,-151.0,0.00020301,2]
[379726522,1755388244182,-818.61,0.00020301,2]
[379726524,1755388244191,-480.0,0.00020301,2]
[379726526,1755388244200,-567.7,0.00020301,2]
[379726528,1755388244209,-4346.9,0.00020301,2]
[379726530,1755388244219,-546.09,0.00020301,2]
[379726532,1755388244228,-480.0,0.00020301,2]
[379726534,1755388244238,-151.0,0.00020301,2]
[379726536,1755388244248,-480.0,0.00020301,2]
[379726538,1755388244257,-480.0,0.00020301,2]
[379726540,1755388244266,-151.0,0.00020301,2]
[379726542,1755388244276,-649.68,0.00020301,2]
[379726544,1755388244286,-480.0,0.00020301,2]
[379726546,1755388244295,-480.0,0.00020301,2]
[379726548,1755388244305,-480.0,0.00020301,2]
[379726550,1755388244315,-151.0,0.00020301,2]
[379726552,1755388244324,-480.0,0.00020301,2]
[379726554,1755388244333,-764.22,0.00020301,2]
[379726556,1755388244343,-480.0,0.00020301,2]
[379726558,1755388244352,-631.41,0.00020301,2]
[379726560,1755388244362,-500.0,0.00020301,2]
[379726562,1755388244371,-500.0,0.00020316,2]
[379726564,1755388244381,-166.052772,0.00020317,2]
[379726566,1755388244390,-204.396233,0.00020317,2]
[379726568,1755388244399,-261.047944,0.00020317,2]
[379726570,1755388244409,-151.0,0.00020317,2]
[379726572,1755388244419,-151.0,0.00020317,2]
[379726574,1755388244428,-151.0,0.00020317,2]
[379726576,1755388244437,-159.729765,0.00020317,2]
[379726578,1755388244446,-159.729765,0.00020317,2]
[379726580,1755388244456,-151.0,0.00020317,2]
[379726582,1755388244465,-151.0,0.00020317,2]
[379726584,1755388244475,-17842.522448,0.00020317,2]
[379726586,1755388244484,-500.0,0.00020317,2]
[379726588,1755388244494,-500.0,0.00020317,2]
[379726590,1755388244504,-500.0,0.00020317,2]
[379726592,1755388244514,-500.0,0.00020317,2]
[379726594,1755388244523,-500.0,0.00020317,2]
[379726596,1755388244532,-500.0,0.00020317,2]
[379726598,1755388244541,-500.0,0.00020317,2]
[379726600,1755388244551,-500.0,0.00020317,2]
[379726602,1755388244560,-500.0,0.00020317,2]
[379726604,1755388244570,-500.0,0.00020317,2]
[379726606,1755388244583,-500.0,0.00020317,2]
[379726608,1755388244592,-500.0,0.00020317,2]
[379726610,1755388244601,-2183.31810187,0.00020317,2]
[379726612,1755388244610,-500.0,0.00020317,2]
[379726614,1755388244621,-500.0,0.00020317,2]
[379726616,1755388244630,-500.0,0.00020317,2]
[379726618,1755388244639,-500.0,0.00020317,2]
[379726620,1755388244649,-500.0,0.00020317,2]
[379726622,1755388244660,-151.0,0.00020317,2]
[379726624,1755388244670,-151.0,0.00020317,2]
[379726626,1755388244679,-151.0,0.00020317,2]
[379726628,1755388244689,-151.0,0.00020317,2]
[379726630,1755388244698,-151.0,0.00020317,2]
[379726632,1755388244708,-151.0,0.00020317,2]
[379726634,1755388244718,-151.0,0.00020317,2]
[379726636,1755388244727,-151.0,0.00020317,2]
[379726638,1755388244736,-151.0,0.00020317,2]
[379726640,1755388244746,-437.45899008,0.00020372,2]
[379726642,1755388244755,-402.15024408,0.00020388,2]
[379726644,1755388244765,-480.0,0.000204,2]
[379726646,1755388244774,-863.1,0.000204,2]
[379726648,1755388244783,-823.88,0.000204,2]
[379726650,1755388244792,-480.0,0.000204,2]
[379726652,1755388244802,-151.0,0.000204,3]
[379726654,1755388244811,-7413.48,0.000204,2]
[379726656,1755388244821,-776.03,0.000204,2]
[379726658,1755388244830,-1324.64,0.000204,2]
[379726660,1755388244839,-525.28,0.000204,2]
[379726662,1755388244849,-500.0,0.000204,2]
[379726664,1755388244858,-480.0,0.00020401,2]
[379726666,1755388244868,-151.0,0.00020401,2]
[379726667,1755388244877,-733.34,0.00020401,2]
[379726668,1755388244886,-480.0,0.00020401,2]
[379726669,1755388244895,-173.24267667,0.00020401,2]
[379726670,1755388244904,-151.0,0.00020401,2]
[379726671,1755388244913,-480.0,0.00020401,2]
[379726672,1755388244922,-480.0,0.00020401,2]
[379726673,1755388244932,-485.22,0.00020401,2]
[379726674,1755388244941,-480.0,0.00020401,2]
[379726675,1755388244950,-1094.65,0.00020401,2]
[379726676,1755388244960,-964.5,0.00020401,2]
[379726677,1755388244970,-585.65330464,0.00020401,2]
[379726678,1755388244979,-480.0,0.00020401,2]
[379726679,1755388244988,-480.0,0.00020401,2]
[379726680,1755388244998,-480.0,0.00020401,2]
[379726681,1755388245007,-770.3,0.00020401,2]
[379726682,1755388245017,-480.0,0.00020401,2]
[379726683,1755388245027,-151.0,0.00020401,2]
[379726684,1755388245036,-320.0,0.00020401,2]
[379726685,1755388245046,-480.0,0.00020401,2]
[379726686,1755388245055,-480.0,0.00020401,2]
[379726687,1755388245064,-480.0,0.00020401,2]
[379726688,1755388245074,-480.0,0.00020401,2]
[379726689,1755388245083,-480.0,0.00020401,2]
[379726690,1755388245092,-480.0,0.00020401,2]
[379726691,1755388245101,-2306.01,0.00020401,2]
[379726692,1755388245111,-480.0,0.00020401,2]
[379726693,1755388245120,-480.0,0.00020401,2]
[379726694,1755388245129,-480.0,0.00020401,2]
[379726695,1755388245139,-546.58,0.00020401,2]
[379726696,1755388245148,-480.0,0.00020401,2]
[379726697,1755388245157,-480.0,0.00020401,2]
[379726698,1755388245167,-480.0,0.00020401,2]
[379726699,1755388245176,-535.47,0.00020401,2]
[379726700,1755388245185,-734.24,0.00020401,2]
[379726701,1755388245195,-532.38,0.00020401,2]
[379726702,1755388245204,-480.0,0.00020401,2]
[379726703,1755388245213,-480.0,0.00020401,2]
[379726704,1755388245222,-151.0,0.00020401,2]
[379726705,1755388245232,-480.0,0.00020401,2]
[379726706,1755388245241,-1185.5,0.00020401,2]
[379726707,1755388245250,-307.1744739,0.00020401,2]
[379726708,1755388245260,-480.0,0.00020401,2]
[379726709,1755388245269,-151.0,0.00020401,2]
[379726710,1755388245279,-505.71,0.00020401,2]
[379726711,1755388245288,-738.63,0.00020401,2]
[379726712,1755388245298,-151.0,0.00020401,2]
[379726713,1755388245308,-480.0,0.00020401,2]
[379726714,1755388245317,-151.0,0.00020401,2]
[379726715,1755388245327,-151.0,0.00020401,2]
[379726716,1755388245337,-151.0,0.00020401,2]
[379726717,1755388245346,-159.729765,0.00020401,2]
[379726718,1755388245356,-151.0,0.00020401,2]
[379726719,1755388245365,-159.729765,0.00020401,2]
[379726720,1755388245375,-576.69,0.00020401,2]
[379726721,1755388245385,-480.0,0.00020401,2]
[379726722,1755388245394,-2368.42,0.00020401,2]
[379726723,1755388245404,-151.0,0.00020401,2]
[379726724,1755388245413,-882.73,0.00020401,2]
[379726725,1755388245423,-480.0,0.00020401,2]
[379726726,1755388245431,-531.14,0.00020401,2]
[379726727,1755388245441,-480.0,0.00020401,2]
[379726728,1755388245450,-480.0,0.00020401,2]
[379726729,1755388245459,-151.0,0.00020401,2]
[379726730,1755388245468,-582.53,0.00020401,2]
[379726731,1755388245478,-151.0,0.00020401,2]
[379726732,1755388245487,-151.0,0.00020401,2]
[379726733,1755388245497,-480.0,0.00020401,2]
[379726734,1755388245506,-480.0,0.00020401,2]
[379726735,1755388245515,-673.8,0.00020401,2]
[379726736,1755388245525,-151.0,0.00020401,2]
[379726737,1755388245534,-480.0,0.00020401,2]
[379726738,1755388245544,-480.0,0.00020401,2]
[379726739,1755388245553,-326.14,0.00020401,2]
[379726740,1755388245563,-480.0,0.00020401,2]
[379726741,1755388245574,-480.0,0.00020401,2]
[379726742,1755388245584,-480.0,0.00020401,2]
[379726743,1755388245593,-480.0,0.00020401,2]
[379726744,1755388245603,-577.78,0.00020401,2]
[379726745,1755388245613,-480.0,0.00020401,2]
[379726746,1755388245622,-151.0,0.00020401,2]
[379726747,1755388245631,-247.96646,0.00020401,2]
[379726748,1755388245641,-151.0,0.00020401,2]
[379726749,1755388245651,-500.0,0.00020401,2]
[379726750,1755388245661,-500.0,0.00020401,2]
[379726751,1755388245671,-500.0,0.00020401,2]
[379726752,1755388245681,-544.83,0.00020401,2]
[379726753,1755388245690,-480.0,0.00020402,2]
[379726754,1755388245700,-480.0,0.00020402,2]
[379726755,1755388245709,-460.0,0.00020402,2]
[379726756,1755388245719,-480.0,0.00020402,2]
[379726757,1755388245728,-480.0,0.00020402,2]
[379726758,1755388245738,-480.0,0.00020402,2]
[379726759,1755388245748,-480.0,0.00020402,2]
[379726760,1755388245758,-480.0,0.00020402,2]
[379726761,1755388245768,-226.75093746,0.00020402,2]
[379726762,1755388245778,-7339.11,0.00020402,2]
[379726763,1755388245787,-480.0,0.00020402,2]
[379726764,1755388245797,-480.0,0.00020402,2]
[379726765,1755388245807,-480.0,0.00020402,2]
[379726766,1755388245817,-1406.99,0.00020402,2]
[379726767,1755388245830,-480.0,0.00020402,2]
[379726769,1755388245839,-333.5021091,0.00020402,2]
[379726770,1755388245849,-906.94,0.00020402,2]
[379726771,1755388245858,-480.0,0.00020402,2]
[379726772,1755388245868,-480.0,0.00020402,2]
[379726773,1755388245878,-5604.82,0.00020402,2]
[379726774,1755388245888,-480.0,0.00020402,2]
[379726775,1755388245897,-480.0,0.00020402,2]
[379726776,1755388245907,-151.0,0.00020402,2]
[379726777,1755388245916,-151.0,0.00020402,2]
[379726778,1755388245925,-480.0,0.00020402,2]
[379726779,1755388245935,-847.62,0.00020402,2]
[379726780,1755388245944,-480.0,0.00020402,2]
[379726781,1755388245954,-853.71,0.00020402,2]
[379726782,1755388245963,-693.06,0.00020402,2]
[379726783,1755388245972,-500.0,0.00020402,2]
[379726784,1755388245982,-480.0,0.00020402,2]
[379726785,1755388245992,-151.0,0.00020403,2]
[379726786,1755388246001,-151.0,0.00020403,2]
[379726787,1755388246011,-151.0,0.00020403,2]
[379726788,1755388246020,-151.0,0.00020403,2]
[379726789,1755388246030,-151.0,0.00020403,2]
[379726790,1755388246039,-151.0,0.00020403,2]
[379726791,1755388246048,-151.0,0.00020403,2]
[379726792,1755388246058,-151.0,0.00020403,2]
[379726793,1755388246068,-151.0,0.00020403,2]
[379726794,1755388246078,-2091.04,0.00020403,2]
[379726795,1755388246087,-480.0,0.00020403,2]
[379726796,1755388246097,-1929.11,0.00020403,2]
[379726798,1755388246106,-151.0,0.00020403,2]
[379726800,1755388246115,-480.0,0.00020403,2]
[379726801,1755388246125,-566.28,0.00020404,2]
[379726802,1755388246134,-151.0,0.000205,3]
[379726803,1755388246144,-200.0,0.00020531,20]
[379726804,1755388246154,-200.0,0.00020531,20]
[379726805,1755388246164,-200.0,0.00020531,20]
[379726806,1755388246173,-200.0,0.00020531,20]
[379726807,1755388246183,-200.0,0.00020531,20]
[379726808,1755388246192,-200.0,0.00020531,20]
[379726809,1755388246202,-200.0,0.00020531,20]
[379726810,1755388246211,-200.0,0.00020531,20]
[379726811,1755388246221,-200.0,0.00020531,20]
[379726812,1755388246231,-200.0,0.00020531,20]
[379726813,1755388246240,-600.0,0.00020531,20]
[379726814,1755388246380,-402.15024408,0.00020568,2]
[379726815,1755388246391,-480.0,0.00020572,2]
[379726816,1755388246401,-528.94,0.00020573,2]
[379726817,1755388246410,-757.46,0.00020573,2]
[379726818,1755388246419,-2158.19,0.00020573,2]
[379726819,1755388246429,-668.59,0.00020574,2]
[379726820,1755388246439,-480.0,0.00020574,2]
[379726821,1755388246448,-610.44,0.00020574,2]
[379726822,1755388246458,-480.0,0.00020574,2]
[379726823,1755388246468,-480.0,0.00020574,2]
[379726825,1755388246477,-1488.49,0.00020574,2]
[379726827,1755388246487,-2153.6,0.00020574,2]
[379726829,1755388246497,-480.0,0.00020574,2]
[379726831,1755388246507,-480.0,0.00020574,2]
[379726833,1755388246516,-480.0,0.00020574,2]
[379726835,1755388246526,-1535.69,0.00020574,2]
[379726837,1755388246535,-480.0,0.00020574,2]
[379726839,1755388246545,-510.13,0.00020574,2]
[379726841,1755388246555,-480.0,0.00020574,2]
[379726843,1755388246565,-693.17,0.00020574,2]
[379726845,1755388246577,-480.0,0.00020574,2]
[379726847,1755388246587,-863.61,0.00020574,2]
[379726849,1755388246596,-659.97,0.00020574,2]
[379726850,1755388246606,-594.81,0.00020574,2]
[379726851,1755388246615,-480.0,0.00020575,2]
[379726852,1755388246625,-620.71517411,0.00020575,2]
[379726853,1755388246635,-480.0,0.00020575,2]
[379726854,1755388246645,-815.27,0.00020575,2]
[379726855,1755388246655,-1173.07,0.00020575,2]
[379726856,1755388246664,-706.92,0.00020575,2]
[379726857,1755388246674,-480.0,0.00020575,2]
[379726858,1755388246683,-151.0,0.00020575,2]
[379726859,1755388246693,-151.0,0.00020575,2]
[379726860,1755388246703,-151.0,0.00020575,2]
[379726861,1755388246713,-159.729765,0.00020575,2]
[379726862,1755388246722,-159.729765,0.00020575,2]
[379726863,1755388246732,-480.0,0.00020575,2]
[379726864,1755388246741,-486.65,0.00020575,2]
[379726865,1755388246751,-480.0,0.00020575,2]
[379726866,1755388246760,-520.12,0.00020575,2]
[379726867,1755388246770,-480.0,0.00020575,2]
[379726868,1755388246779,-480.0,0.00020575,2]
[379726869,1755388246789,-729.19,0.00020575,2]
[379726870,1755388246798,-818.61,0.00020575,2]
[379726871,1755388246808,-480.0,0.00020575,2]
[379726872,1755388246817,-567.7,0.00020575,2]
[379726873,1755388246826,-4346.9,0.00020575,2]
[379726874,1755388246836,-546.09,0.00020575,2]
[379726875,1755388246845,-208.27,0.00020575,2]
[379726876,1755388246855,-500.0,0.00020575,2]
[379726877,1755388246864,-480.0,0.00020575,2]
[379726878,1755388246873,-480.0,0.00020575,2]
[379726879,1755388246883,-649.68,0.00020575,2]
[379726880,1755388246892,-480.0,0.00020575,2]
[379726881,1755388246902,-480.0,0.00020575,2]
[379726882,1755388246911,-480.0,0.00020575,2]
[379726883,1755388246920,-764.22,0.00020575,2]
[379726884,1755388246930,-631.41,0.00020575,2]
[379726885,1755388246939,-1000.0,0.00020575,2]
[379726886,1755388246948,-151.0,0.000206,4]
[379726887,1755388246957,-160.0,0.00020604,2]
[379726888,1755388246966,-160.0,0.00020604,2]
[379726889,1755388246976,-160.0,0.00020604,2]
[379726890,1755388246985,-462.1417622,0.00020604,2]
[379726891,1755388246995,-232.11368524,0.00020604,2]
[379726892,1755388247004,-160.0,0.00020604,2]
[379726893,1755388247014,-160.0,0.00020604,2]
[379726894,1755388247023,-215.68093138,0.00020604,2]
[379726895,1755388247033,-12681.6255076,0.00020604,2]
[379726896,1755388247042,-160.0,0.00020604,2]
[379726897,1755388247054,-528.38334358,0.00020604,2]
[379726898,1755388247063,-843.58077381,0.00020604,2]
[379726899,1755388247072,-160.0,0.00020604,2]
[379726900,1755388247082,-417.15472785,0.00020604,2]
[379726901,1755388247091,-360.494397,0.00020606,2]
[379726902,1755388247101,-360.494397,0.00020606,2]
[379726903,1755388247110,-151.0,0.00020606,2]
[379726904,1755388247119,-151.0,0.00020606,2]
[379726905,1755388247130,-151.0,0.00020606,2]
[379726906,1755388247139,-262.50774572,0.00020674,2]
[379726907,1755388247148,-863.1,0.00020674,2]
[379726908,1755388247157,-823.88,0.00020674,2]
[379726909,1755388247166,-480.0,0.00020674,2]
[379726910,1755388247175,-7413.48,0.00020674,2]
[379726911,1755388247184,-776.03,0.00020674,2]
[379726912,1755388247193,-1324.64,0.00020674,2]
[379726913,1755388247203,-525.28,0.00020674,2]
[379726914,1755388247213,-151.0,0.00020675,2]
[379726915,1755388247222,-151.0,0.00020675,2]
[379726916,1755388247232,-151.0,0.00020675,2]
[379726917,1755388247242,-723.896909,0.00020675,2]
[379726918,1755388247251,-723.896909,0.00020675,2]
[379726919,1755388247260,-480.0,0.00020675,2]
[379726920,1755388247270,-733.34,0.00020675,2]
[379726921,1755388247279,-480.0,0.00020675,2]
[379726922,1755388247288,-151.0,0.00020675,2]
[379726923,1755388247297,-480.0,0.00020675,2]
[379726924,1755388247307,-485.22,0.00020675,2]
[379726925,1755388247316,-480.0,0.00020675,2]
[379726926,1755388247325,-1094.65,0.00020675,2]
[379726927,1755388247335,-964.5,0.00020675,2]
[379726928,1755388247344,-480.0,0.00020675,2]
[379726929,1755388247353,-770.3,0.00020675,2]
[379726930,1755388247363,-593.25499263,0.00020675,2]
[379726931,1755388247372,-480.0,0.00020675,2]
[379726932,1755388247381,-480.0,0.00020675,2]
[379726933,1755388247391,-480.0,0.00020675,2]
[379726934,1755388247400,-2306.01,0.00020675,2]
[379726935,1755388247409,-151.0,0.00020675,2]
[379726936,1755388247419,-480.0,0.00020675,2]
[379726937,1755388247430,-546.58,0.00020675,2]
[379726938,1755388247442,-455.45372945,0.00020675,2]
[379726939,1755388247453,-480.0,0.00020675,2]
[379726940,1755388247463,-535.47,0.00020675,2]
[379726941,1755388247474,-734.24,0.00020675,2]
[379726942,1755388247484,-532.38,0.00020675,2]
[379726943,1755388247494,-199.602392,0.00020675,2]
[379726944,1755388247505,-1185.5,0.00020675,2]
[379726945,1755388247515,-480.0,0.00020675,2]
[379726946,1755388247526,-151.0,0.00020675,2]
[379726947,1755388247537,-505.71,0.00020675,2]
[379726948,1755388247547,-738.63,0.00020675,2]
[379726949,1755388247558,-151.0,0.00020675,2]
[379726950,1755388247568,-480.0,0.00020675,2]
[379726951,1755388247581,-151.0,0.00020675,2]
[379726952,1755388247591,-151.0,0.00020675,2]
[379726953,1755388247601,-162.520612,0.00020675,2]
[379726954,1755388247611,-159.729765,0.00020675,2]
[379726955,1755388247622,-151.0,0.00020675,2]
[379726956,1755388247631,-159.729765,0.00020675,2]
[379726957,1755388247640,-576.69,0.00020675,2]
[379726958,1755388247651,-2368.42,0.00020675,2]
[379726959,1755388247661,-206.697946,0.00020675,2]
[379726960,1755388247671,-882.73,0.00020675,2]
[379726961,1755388247680,-480.0,0.00020675,2]
[379726962,1755388247689,-531.14,0.00020675,2]
[379726963,1755388247698,-480.0,0.00020675,2]
[379726964,1755388247708,-480.0,0.00020675,2]
[379726965,1755388247720,-247.730748,0.00020675,2]
[379726966,1755388247729,-582.53,0.00020675,2]
[379726967,1755388247741,-480.0,0.00020675,2]
[379726968,1755388247750,-480.0,0.00020675,2]
[379726969,1755388247761,-673.8,0.00020675,2]
[379726970,1755388247770,-151.0,0.00020675,2]
[379726971,1755388247780,-480.0,0.00020675,2]
[379726972,1755388247789,-480.0,0.00020675,2]
[379726973,1755388247799,-480.0,0.00020675,2]
[379726974,1755388247808,-480.0,0.00020675,2]
[379726975,1755388247818,-480.0,0.00020675,2]
[379726976,1755388247827,-577.78,0.00020675,2]
[379726977,1755388247837,-480.0,0.00020675,2]
[379726978,1755388247846,-151.0,0.00020675,2]
[379726979,1755388247855,-544.83,0.00020675,2]
[379726980,1755388247864,-151.0,0.00020676,2]
[379726981,1755388247874,-413.61539641,0.00020676,2]
[379726982,1755388247883,-480.0,0.00020676,2]
[379726983,1755388247892,-480.0,0.00020676,2]
[379726984,1755388247902,-480.0,0.00020676,2]
[379726985,1755388247911,-480.0,0.00020676,2]
[379726986,1755388247920,-480.0,0.00020676,2]
[379726987,1755388247930,-7339.11,0.00020676,2]
[379726988,1755388247939,-480.0,0.00020676,2]
[379726989,1755388247948,-480.0,0.00020676,2]
[379726990,1755388247957,-480.0,0.00020676,2]
[379726991,1755388247966,-1406.99,0.00020676,2]
[379726992,1755388247975,-480.0,0.00020676,2]
[379726993,1755388247984,-906.94,0.00020676,2]
[379726994,1755388247994,-480.0,0.00020676,2]
[379726995,1755388248003,-480.0,0.00020676,2]
[379726996,1755388248012,-5604.82,0.00020676,2]
[379726997,1755388248021,-480.0,0.00020676,2]
[379726998,1755388248030,-480.0,0.00020676,2]
[379726999,1755388248039,-151.0,0.00020676,2]
[379727000,1755388248049,-847.62,0.00020676,2]
[379727001,1755388248058,-480.0,0.00020676,2]
[379727002,1755388248067,-853.71,0.00020676,2]
[379727003,1755388248077,-693.06,0.00020676,2]
[379727004,1755388248086,-480.0,0.00020676,2]
[379727005,1755388248095,-151.0,0.00020677,2]
[379727006,1755388248105,-360.494397,0.00020677,2]
[379727007,1755388248114,-360.494397,0.00020677,2]
[379727008,1755388248123,-151.0,0.00020677,2]
[379727009,1755388248133,-151.0,0.00020677,2]
[379727010,1755388248142,-293.362164,0.00020677,2]
[379727011,1755388248152,-151.0,0.00020677,2]
[379727012,1755388248162,-151.0,0.00020677,2]
[379727013,1755388248172,-151.0,0.00020677,2]
[379727014,1755388248181,-151.0,0.00020677,2]
[379727015,1755388248190,-2091.04,0.00020677,2]
[379727016,1755388248199,-480.0,0.00020677,2]
[379727017,1755388248209,-1929.11,0.00020677,2]
[379727018,1755388248218,-151.0,0.00020677,2]
[379727019,1755388248228,-480.0,0.00020677,2]
[379727020,1755388248237,-151.0,0.00020678,2]
[379727021,1755388248248,-723.896909,0.00020678,2]
[379727022,1755388248257,-723.896909,0.00020678,2]
[379727023,1755388248266,-151.0,0.00020678,2]
[379727024,1755388248275,-259.626194,0.00020678,2]
[379727025,1755388248284,-151.0,0.000207,4]
[379727026,1755388248294,-222.15383929,0.00020721,2]
[379727027,1755388248304,-1000.0,0.00020721,2]
[379727028,1755388248313,-504.12150487,0.00020721,2]
[379727029,1755388248322,-1000.0,0.00020721,2]
[379727030,1755388248332,-1000.0,0.00020721,2]
[379727031,1755388248341,-500.0,0.00020721,2]
[379727032,1755388248351,-500.0,0.00020721,2]
[379727033,1755388248361,-500.0,0.00020721,2]
[379727034,1755388248370,-501.5828686,0.00020721,2]
[379727035,1755388248380,-1000.0,0.00020721,2]
[379727036,1755388248390,-1000.0,0.00020721,2]
[379727037,1755388248400,-502.20200351,0.00020721,2]
[379727038,1755388248410,-502.11043225,0.00020721,2]
[379727039,1755388248419,-500.95031279,0.00020721,2]
[379727040,1755388248428,-501.70160857,0.00020721,2]
[379727041,1755388248438,-406.5527924,0.00020721,2]
[379727042,1755388248448,-1000.0,0.00020721,2]
[379727043,1755388248457,-1000.0,0.00020721,2]
[379727044,1755388248466,-1000.0,0.00020721,2]
[379727045,1755388248475,-1000.0,0.00020721,2]
[379727046,1755388248484,-1000.0,0.00020721,2]
[379727047,1755388248494,-1000.0,0.00020721,2]
[379727048,1755388248504,-500.0,0.00020721,2]
[379727049,1755388248513,-1000.0,0.00020721,2]
[379727050,1755388248523,-502.15305957,0.00020721,2]
[379727051,1755388248533,-500.0,0.00020721,2]
[379727052,1755388248543,-504.00839614,0.00020721,2]
[379727053,1755388248552,-690.0,0.00020743,2]
[379727054,1755388248562,-402.15024408,0.00020749,2]
[379727055,1755388248574,-151.0,0.000208,4]
[379727056,1755388248584,-480.0,0.00020846,2]
[379727057,1755388248596,-528.94,0.00020847,2]
[379727058,1755388248606,-757.46,0.00020847,2]
[379727059,1755388248616,-2158.19,0.00020847,2]
[379727060,1755388248626,-668.59,0.00020848,2]
[379727061,1755388248635,-480.0,0.00020848,2]
[379727062,1755388248645,-610.44,0.00020848,2]
[379727063,1755388248655,-376.14674731,0.00020848,2]
[379727064,1755388248664,-215.21525511,0.00020848,2]
[379727065,1755388248674,-1488.49,0.00020848,2]
[379727066,1755388248684,-2153.6,0.00020848,2]
[379727067,1755388248694,-480.0,0.00020848,2]
[379727068,1755388248703,-480.0,0.00020848,2]
[379727069,1755388248713,-480.0,0.00020848,2]
[379727070,1755388248722,-1535.69,0.00020848,2]
[379727071,1755388248732,-480.0,0.00020848,2]
[379727072,1755388248742,-510.13,0.00020848,2]
[379727073,1755388248751,-480.0,0.00020848,2]
[379727074,1755388248811,-693.17,0.00020848,2]
[379727075,1755388248821,-480.0,0.00020848,2]
[379727076,1755388248830,-863.61,0.00020848,2]
[379727077,1755388248839,-659.97,0.00020848,2]
[379727078,1755388248848,-594.81,0.00020848,2]
[379727079,1755388248858,-480.0,0.00020849,2]
[379727080,1755388248867,-498.57360943,0.00020849,2]